bitfinex/quotes_BTCUSD_20250204
["timestamp","ask_amount","ask_price","bid_price","bid_amount"]
[1738704782765,0.15506701,96972.0,96971.0,0.02242461]
[1738704782933,0.25745207,96972.0,96971.0,0.02042461]
[1738704783109,0.25745207,96972.0,96971.0,0.02342461]
[1738704783547,0.00038401,96972.0,96971.0,0.12591933]
[1738704783712,0.15706701,96972.0,96971.0,0.12291933]
[1738704783931,0.00238401,96972.0,96971.0,0.35359467]
[1738704784274,0.0822491,96999.0,96977.0,0.15]
[1738704784387,0.0822491,96999.0,96998.0,0.154642]
[1738704784596,0.0822491,96999.0,96982.0,0.206223]
[1738704784799,0.0822491,97009.0,96982.0,0.36089]
[1738704784996,0.0822491,97009.0,96981.0,0.00030655]
[1738704785202,0.0822491,97009.0,96988.0,0.20621]
[1738704785447,0.0822491,97009.0,96999.0,0.206187]
[1738704785604,0.01072,97018.0,97007.0,0.154628]
[1738704786004,0.01072,97018.0,97007.0,0.25701306]
[1738704786224,0.0822491,97046.0,97007.0,0.38941306]
[1738704786444,0.01072,97031.0,97007.0,0.38941306]
[1738704786656,0.01072,97043.0,97007.0,0.39786801]
[1738704786942,0.01072,97043.0,97007.0,0.47906183]
[1738704787262,0.01072,97043.0,97007.0,0.48306183]
[1738704787470,0.0822491,97046.0,97007.0,0.48306183]
[1738704787471,0.0822491,97046.0,97007.0,0.64306183]
[1738704787674,0.0822491,97046.0,97032.0,0.154588]
[1738704787877,0.04832352,97033.0,97032.0,0.49037961]
[1738704788082,0.0822491,97089.0,97032.0,0.49037961]
[1738704788083,0.01072,97084.0,97033.0,0.1993]
[1738704788282,0.01072,97084.0,97063.0,0.154538]
[1738704788502,0.01072,97084.0,97063.0,0.02092755]
[1738704788753,0.0015452,97083.0,97063.0,0.00030655]
[1738704788919,0.154521,97075.0,97063.0,0.15484355]
[1738704789139,0.154521,97075.0,97033.0,0.0593]
[1738704789140,0.01,97042.0,97007.0,0.005]
[1738704789383,0.01,97037.0,97007.0,0.005]
[1738704789531,0.0164,97039.0,97007.0,0.005]
[1738704789532,0.00154646,97036.0,97007.0,0.005]
[1738704789736,0.412226,97034.0,97007.0,0.01014116]
[1738704789956,0.154626,97008.0,97007.0,0.00514116]
[1738704790121,0.15462,97012.0,97007.0,0.00014116]
[1738704790323,0.206119,97031.0,97007.0,0.00014116]
[1738704790524,0.154605,97022.0,97007.0,0.15976716]
[1738704790748,0.10238506,97030.0,97008.0,0.03707197]
[1738704790749,0.11310506,97030.0,97008.0,0.03707197]
[1738704791008,0.154598,97026.0,97008.0,0.03707197]
[1738704791195,0.01072,97030.0,97008.0,0.03707197]
[1738704791339,0.10238506,97029.0,97007.0,0.00214116]
[1738704791543,0.00154612,97028.0,97007.0,0.00314116]
[1738704791766,0.0002245,97008.0,97007.0,0.00214116]
[1738704791967,0.10260956,97008.0,97007.0,0.00214116]
[1738704792190,0.25723556,97008.0,97007.0,0.00214116]
[1738704792396,0.1548505,97008.0,97007.0,0.00214116]
[1738704792636,0.0002245,97008.0,97007.0,0.00014116]
[1738704793197,0.0002245,97008.0,97007.0,0.15476916]
[1738704793370,0.0002245,97008.0,97007.0,0.03671333]
[1738704793572,0.0002245,97008.0,97007.0,0.15476916]
[1738704793734,0.0002245,97008.0,97007.0,0.00014116]
[1738704793910,0.0002245,97008.0,97007.0,0.00214116]
[1738704794142,0.0002245,97008.0,97007.0,0.10452622]
[1738704794347,0.0002245,97008.0,97007.0,0.18022622]
[1738704794551,0.0002245,97008.0,97007.0,0.26015509]
[1738704795022,0.0002245,97008.0,97007.0,0.41015509]
[1738704795210,0.0002245,97008.0,97007.0,0.4209355]
[1738704795924,0.0002245,97008.0,97007.0,0.4189355]
[1738704796124,0.0002245,97008.0,97007.0,0.4219355]
[1738704796526,0.0002245,97008.0,97007.0,0.4259355]
[1738704796726,0.0012245,97008.0,97007.0,0.2729355]
[1738704796902,0.0002245,97008.0,97007.0,0.2729355]
[1738704797280,0.0012245,97008.0,97007.0,0.2779355]
[1738704797404,0.0012245,97008.0,97007.0,0.00014116]
[1738704797809,0.0022245,97008.0,97007.0,0.00914116]
[1738704798032,0.0002245,97008.0,97007.0,0.00414116]
[1738704798412,0.0012245,97008.0,97007.0,0.00914116]
[1738704798811,0.0012245,97008.0,97007.0,0.02599593]
[1738704799036,0.0012245,97008.0,97007.0,0.02199593]
[1738704799413,0.0012245,97008.0,97007.0,0.02599593]
[1738704799611,0.0002245,97008.0,97007.0,0.02099593]
[1738704799812,0.0002245,97008.0,97007.0,0.01699593]
[1738704800179,0.0012245,97008.0,97007.0,0.02499593]
[1738704800329,0.0012245,97008.0,97007.0,0.01999593]
[1738704800706,0.0012245,97008.0,97007.0,0.02099593]
[1738704801101,0.0012245,97008.0,97007.0,0.02399593]
[1738704801301,0.0012245,97008.0,97007.0,0.00714116]
[1738704802311,0.0012245,97008.0,97007.0,0.00414116]
[1738704802774,0.0002245,97008.0,97007.0,0.00314116]
[1738704802978,0.0002245,97008.0,97007.0,0.00324796]
[1738704803149,0.0002245,97008.0,97007.0,0.00424796]
[1738704803348,0.0002245,97008.0,97007.0,0.00024796]
[1738704803552,0.0002245,97008.0,97007.0,0.00224796]
[1738704803904,0.10260956,97008.0,97007.0,0.00324796]
[1738704804104,0.16121591,97008.0,97007.0,0.00024796]
[1738704804433,0.16121591,97008.0,97007.0,0.00324796]
[1738704804648,0.16121591,97008.0,97007.0,0.00224796]
[1738704805384,0.154666,96983.0,96969.0,4.49882745]
[1738704805585,0.25705106,96983.0,96969.0,4.49882745]
[1738704805972,0.30337797,96983.0,96969.0,4.49882745]
[1738704806593,0.34537797,96983.0,96969.0,4.49882745]
[1738704806802,0.28544907,96983.0,96982.0,0.01664607]
[1738704807064,0.27644907,96983.0,96982.0,0.01664607]
[1738704807344,0.02872,96983.0,96982.0,0.01664607]
[1738704807546,0.018,96983.0,96982.0,0.01664607]
[1738704808593,0.12193185,96983.0,96982.0,0.01664607]
[1738704808796,0.19083423,96983.0,96982.0,0.01164607]
[1738704809014,0.13272428,96983.0,96982.0,0.01064607]
[1738704809170,0.11472428,96983.0,96982.0,0.01064607]
[1738704809377,0.12372428,96983.0,96982.0,0.01564607]
[1738704809577,0.12372428,96983.0,96982.0,0.01164607]
[1738704810215,0.20180591,96983.0,96982.0,0.01164607]
[1738704810933,0.13272428,96983.0,96982.0,0.01164607]
[1738704811096,0.14172428,96983.0,96982.0,0.01264607]
[1738704811905,0.13272428,96983.0,96982.0,0.01164607]
[1738704812248,0.14172428,96983.0,96982.0,0.01264607]
[1738704812446,0.12372428,96983.0,96982.0,0.01164607]
[1738704812684,0.11472428,96983.0,96982.0,0.01064607]
[1738704812821,0.11317749,96983.0,96982.0,0.01064607]
[1738704813024,0.12038506,96983.0,96982.0,0.01264607]
[1738704813227,0.02872,96983.0,96982.0,0.01264607]
[1738704813410,0.01972,96983.0,96982.0,0.01164607]
[1738704813607,0.01072,96983.0,96982.0,0.01064607]
[1738704813860,0.009,96983.0,96982.0,0.01164607]
[1738704814051,0.018,96983.0,96982.0,0.11503113]
[1738704814382,0.018,96983.0,96982.0,0.06023908]
[1738704814588,0.018,96983.0,96973.0,0.356242]
[1738704814771,0.009,96983.0,96982.0,0.10238506]
[1738704814972,0.08246785,96994.0,96982.0,0.10238506]
[1738704815174,0.08246785,96994.0,96973.0,0.15]
[1738704815175,0.08246785,96994.0,96983.0,0.13324677]
[1738704815400,0.08246785,96994.0,96988.0,0.154657]
[1738704815609,0.08246785,96994.0,96982.0,0.0031068]
[1738704815812,0.154637,97002.0,96987.0,0.154659]
[1738704816009,0.154638,97001.0,96987.0,0.154659]
[1738704816145,0.154638,97001.0,96988.0,0.03639868]
[1738704816564,0.00154642,97003.0,96988.0,0.03639868]
[1738704816753,0.206181,97002.0,96987.0,0.154658]
[1738704816946,0.154634,97003.0,96989.0,0.154656]
[1738704817165,0.154637,97002.0,96985.0,0.206217]
[1738704817365,0.00154642,97003.0,96988.0,0.154656]
[1738704817547,0.154637,97002.0,96988.0,0.002]
[1738704817785,0.154638,97001.0,96989.0,0.02113238]
[1738704817987,0.01072,97004.0,96982.0,0.0031068]
[1738704817988,0.00154642,97000.0,96982.0,0.0001068]
[1738704818188,0.154654,96991.0,96989.0,0.002]
[1738704818625,0.10393164,96990.0,96989.0,0.002]
[1738704819385,0.154666,96983.0,96982.0,0.0031068]
[1738704819590,0.25705106,96983.0,96982.0,0.0031068]
[1738704819810,0.25705106,96983.0,96982.0,0.0001068]
[1738704820959,0.26205106,96983.0,96982.0,0.0001068]
[1738704821722,0.26305106,96983.0,96982.0,0.0001068]
[1738704822106,0.33835106,96983.0,96982.0,0.0001068]
[1738704822734,0.33735106,96983.0,96982.0,0.0001068]
[1738704822939,0.41439767,96983.0,96982.0,0.0001068]
[1738704823137,0.47719767,96983.0,96982.0,0.0001068]
[1738704823342,0.41539767,96983.0,96982.0,0.0001068]
[1738704823655,0.42039767,96983.0,96982.0,0.0011068]
[1738704823857,0.41039767,96983.0,96982.0,0.0001068]
[1738704824366,0.41639767,96983.0,96982.0,0.0011068]
[1738704824741,0.42539767,96983.0,96982.0,0.0021068]
[1738704825182,0.41639767,96983.0,96982.0,0.0011068]
[1738704825629,0.41839767,96983.0,96982.0,0.0011068]
[1738704826727,0.43914148,96983.0,96982.0,0.0011068]
[1738704827126,0.36709487,96983.0,96982.0,0.0011068]
[1738704827335,0.28199556,96983.0,96982.0,0.0011068]
[1738704827564,0.1796105,96983.0,96982.0,0.0011068]
[1738704827709,0.0249445,96983.0,96982.0,0.0011068]
[1738704828127,0.12887627,96983.0,96982.0,0.0011068]
[1738704828326,0.1933181,96983.0,96982.0,0.0011068]
[1738704828529,0.1913181,96983.0,96982.0,0.0011068]
[1738704828932,0.1923181,96983.0,96982.0,0.0011068]
[1738704829152,0.12087627,96983.0,96982.0,0.0001068]
[1738704829355,0.11987627,96983.0,96982.0,0.0001068]
[1738704829557,0.12487627,96983.0,96982.0,0.0001068]
[1738704830117,0.12987627,96983.0,96982.0,0.0001068]
[1738704830533,0.44437627,96983.0,96982.0,8e-07]
[1738704830738,0.44437627,96983.0,96969.0,4.49882745]
[1738704830739,0.154687,96970.0,96969.0,4.49882745]
[1738704830935,0.25707206,96970.0,96969.0,4.49882745]
[1738704831343,0.26779206,96970.0,96969.0,4.49882745]
[1738704831958,0.26793323,96970.0,96969.0,4.49882745]
[1738704832192,0.278023,96982.0,96969.0,4.49882745]
[1738704832193,0.0052245,96983.0,96969.0,4.64842217]
[1738704832391,0.041268,97002.0,97000.0,0.154637]
[1738704832562,0.154587,97033.0,97006.0,0.154629]
[1738704832788,0.30036607,97008.0,97007.0,0.154628]
[1738704832960,0.30036607,97008.0,97000.0,0.0784]
[1738704833163,0.20617,97007.0,96999.0,0.0471]
[1738704833362,0.30036607,97008.0,96999.0,0.0471]
[1738704833563,0.30036607,97008.0,96984.0,0.206219]
[1738704833564,0.154629,97006.0,96984.0,0.206219]
[1738704833766,0.30136607,97008.0,97006.0,0.154629]
[1738704834130,0.30036607,97008.0,97006.0,0.154628]
[1738704834339,0.30036607,97008.0,96983.0,0.0493]
[1738704834548,0.30036607,97008.0,97006.0,0.154628]
[1738704834909,0.30036607,97008.0,97007.0,0.10238506]
[1738704835104,0.30036607,97008.0,97007.0,0.23208506]
[1738704836146,0.08246785,97049.0,97017.0,0.01]
[1738704836272,0.08246785,97049.0,97041.0,0.154573]
[1738704836474,0.08828649,97042.0,97041.0,0.284273]
[1738704837350,0.07570103,97042.0,97041.0,0.39665806]
[1738704837560,0.07570103,97042.0,97041.0,0.38765806]
[1738704837757,0.07570103,97042.0,97041.0,0.33805806]
[1738704837995,0.07570103,97042.0,97041.0,0.155573]
[1738704838563,0.07692553,97042.0,97041.0,0.160573]
[1738704838910,0.07692553,97042.0,97041.0,0.159573]
[1738704839136,0.07692553,97042.0,97041.0,0.25795806]
[1738704839309,0.07592553,97042.0,97041.0,0.25695806]
[1738704839551,0.07692553,97042.0,97041.0,0.26195806]
[1738704839729,0.07792553,97042.0,97041.0,0.26295806]
[1738704840143,0.07692553,97042.0,97041.0,0.26195806]
[1738704840296,0.07792553,97042.0,97041.0,0.26295806]
[1738704840707,0.07692553,97042.0,97041.0,0.25695806]
[1738704841165,0.07692553,97042.0,97041.0,0.004]
[1738704841486,0.07692553,97042.0,97040.0,0.154575]
[1738704841794,0.03653554,97042.0,97041.0,0.26238506]
[1738704842033,0.00022428,97063.0,97062.0,0.39604]
[1738704842237,0.00022471,97106.0,97079.0,0.15]
[1738704842436,0.00022471,97106.0,97089.0,0.205996]
[1738704842658,0.08293984,97104.0,97103.0,0.154475]
[1738704842830,0.00047199,97104.0,97103.0,0.33836006]
[1738704843035,0.00047199,97104.0,97103.0,0.59447148]
[1738704843254,0.00022471,97106.0,97105.0,0.314471]
[1738704843441,0.00036621,97106.0,97105.0,0.51296748]
[1738704843620,0.01072,97152.0,97111.0,0.01]
[1738704843827,0.2060695,97161.0,97112.0,0.41684506]
[1738704844028,9.1e-07,97113.0,97112.0,0.52295648]
[1738704844226,0.0002245,97161.0,97139.0,0.154417]
[1738704844430,0.0002245,97161.0,97139.0,0.29908968]
[1738704844431,0.00036611,97140.0,97139.0,0.29908968]
[1738704844627,0.0002245,97161.0,97145.0,0.164408]
[1738704844831,0.0002245,97161.0,97145.0,0.49813818]
[1738704845075,0.0002245,97161.0,97160.0,0.154384]
[1738704845251,0.0002245,97161.0,97160.0,0.25676906]
[1738704845452,0.0002245,97161.0,97160.0,0.26676906]
[1738704846031,0.0002245,97161.0,97160.0,0.25676906]
[1738704846798,0.0012245,97161.0,97160.0,0.10538506]
[1738704847221,0.0012245,97161.0,97160.0,0.11538506]
[1738704847580,0.0012245,97161.0,97160.0,0.27538506]
[1738704847780,0.01666667,97207.0,97184.0,0.154346]
[1738704847781,0.08246785,97193.0,97184.0,0.154346]
[1738704847995,0.0003659,97185.0,97184.0,0.10238506]
[1738704848198,0.0003659,97185.0,97184.0,0.25238506]
[1738704848398,0.0003659,97185.0,97184.0,0.32858506]
[1738704848796,0.0003659,97185.0,97184.0,0.33926374]
[1738704849000,0.0003659,97185.0,97184.0,0.34926374]
[1738704849345,0.0003659,97185.0,97184.0,0.35126374]
[1738704849346,0.0013659,97185.0,97184.0,0.35126374]
[1738704849572,0.0013659,97185.0,97184.0,0.34926374]
[1738704849767,0.01666667,97207.0,97193.0,0.01]
[1738704849999,0.01666667,97207.0,97185.0,0.1993]
[1738704850000,0.01713782,97207.0,97206.0,0.154311]
[1738704850173,0.01713782,97207.0,97206.0,0.25669606]
[1738704850732,0.0004879,97207.0,97206.0,0.41669606]
[1738704850943,0.0004879,97207.0,97206.0,0.40669606]
[1738704851144,0.0004879,97207.0,97206.0,0.25669606]
[1738704851779,0.0004879,97207.0,97206.0,0.27261464]
[1738704852204,0.0004879,97207.0,97206.0,0.42261464]
[1738704852541,0.0014879,97207.0,97206.0,0.26238506]
[1738704852713,0.0014879,97207.0,97206.0,0.10538506]
[1738704852964,0.0014879,97207.0,97206.0,0.003]
[1738704853161,0.004031,97207.0,97206.0,0.007]
[1738704853316,0.004031,97207.0,97180.0,0.32970369]
[1738704853317,0.205749,97206.0,97180.0,0.32970369]
[1738704853514,0.0014879,97207.0,97206.0,0.003]
[1738704853955,0.0014879,97207.0,97197.0,0.32970369]
[1738704854373,0.0014879,97207.0,97206.0,0.003]
[1738704854722,0.1557969,97207.0,97206.0,0.005]
[1738704854922,0.0004879,97207.0,97197.0,0.32970369]
[1738704855150,0.0004879,97207.0,97197.0,0.33570369]
[1738704855345,0.0004879,97207.0,97197.0,0.006]
[1738704855569,0.154323,97199.0,97197.0,0.001]
[1738704856024,0.00154333,97198.0,97197.0,0.001]
[1738704856438,0.154349,97182.0,97180.0,0.32970369]
[1738704856588,0.154349,97182.0,97160.0,0.154383]
[1738704856589,0.10392855,97198.0,97160.0,0.32970369]
[1738704856792,0.10392857,97197.0,97161.0,0.10238506]
[1738704856993,0.00154351,97196.0,97160.0,0.32970369]
[1738704857215,0.205776,97193.0,97161.0,0.10238506]
[1738704857394,0.01296462,97206.0,97161.0,0.30822706]
[1738704857597,0.20576,97201.0,97180.0,0.32970369]
[1738704857798,0.08246785,97209.0,97181.0,0.10238506]
[1738704857998,0.0114079,97207.0,97181.0,0.10238506]
[1738704858201,0.0114079,97207.0,97197.0,0.002]
[1738704858408,0.0004879,97207.0,97198.0,0.10238506]
[1738704858607,0.0004879,97207.0,97206.0,0.154311]
[1738704859282,0.0004879,97207.0,97206.0,0.25669606]
[1738704859481,0.0004879,97207.0,97200.0,0.205759]
[1738704859690,0.0004879,97207.0,97201.0,0.10238506]
[1738704859883,0.0004879,97207.0,97206.0,0.154311]
[1738704860087,0.0004879,97207.0,97206.0,0.25669606]
[1738704860420,0.0004879,97207.0,97197.0,0.33170369]
[1738704860636,0.0004879,97207.0,97200.0,0.003]
[1738704860891,0.05438204,97229.0,97200.0,0.003]
[1738704861014,0.00014129,97228.0,97206.0,0.004]
[1738704861219,0.00014129,97228.0,97210.0,0.32970369]
[1738704861421,0.00014129,97228.0,97216.0,0.154295]
[1738704861616,0.154281,97225.0,97210.0,0.48400769]
[1738704861848,0.00014129,97228.0,97216.0,0.154294]
[1738704862052,0.00014129,97228.0,97212.0,0.205735]
[1738704862263,0.154288,97221.0,97210.0,0.33170369]
[1738704862459,0.00014129,97228.0,97211.0,0.10361934]
[1738704862666,0.00014129,97228.0,97226.0,0.154279]
[1738704862866,0.00014129,97228.0,97212.0,0.15]
[1738704862867,0.00014129,97228.0,97227.0,0.25666306]
[1738704863477,0.00014129,97228.0,97214.0,0.15]
[1738704863690,0.00014129,97228.0,97215.0,0.10238506]
[1738704863896,0.00014129,97228.0,97215.0,0.10361912]
[1738704864222,0.00014129,97228.0,97226.0,0.154279]
[1738704864499,0.15441829,97228.0,97226.0,0.003]
[1738704864718,0.00014129,97228.0,97226.0,0.003]
[1738704864919,0.15432687,97228.0,97226.0,0.003]
[1738704865498,0.15586492,97228.0,97226.0,0.003]
[1738704865757,0.1190678,97227.0,97226.0,0.003]
[1738704865997,0.1190678,97227.0,97226.0,0.006]
[1738704865998,0.10392311,97227.0,97226.0,0.006]
[1738704866149,0.10238506,97227.0,97226.0,0.006]
[1738704866351,4.987e-05,97228.0,97226.0,0.006]
[1738704867003,0.005,97227.0,97226.0,0.00689806]
[1738704867305,0.005,97227.0,97226.0,0.001]
[1738704867475,4.987e-05,97228.0,97226.0,0.003]
[1738704867689,4.987e-05,97228.0,97212.0,0.360036]
[1738704867885,4.987e-05,97228.0,97226.0,0.001]
[1738704868128,4.987e-05,97228.0,97226.0,0.004]
[1738704868330,4.987e-05,97228.0,97227.0,0.10361909]
[1738704869067,4.987e-05,97228.0,97227.0,0.25361909]
[1738704869293,4.987e-05,97228.0,97227.0,0.39241618]
[1738704869490,4.987e-05,97228.0,97227.0,0.40241618]
[1738704869767,4.987e-05,97228.0,97227.0,0.43582077]
[1738704870126,4.987e-05,97228.0,97227.0,0.45982077]
[1738704870811,4.987e-05,97228.0,97227.0,0.45882077]
[1738704871091,4.987e-05,97228.0,97227.0,0.46182077]
[1738704871295,4.987e-05,97228.0,97227.0,0.43841618]
[1738704871438,4.987e-05,97228.0,97227.0,0.44441618]
[1738704871649,0.08246785,97254.0,97253.0,0.154236]
[1738704871861,0.08246785,97254.0,97253.0,0.25662106]
[1738704872083,0.00014123,97261.0,97260.0,0.154225]
[1738704872282,0.00014123,97261.0,97260.0,0.25661006]
[1738704872754,0.00014123,97261.0,97260.0,0.10238506]
[1738704872939,0.00014123,97261.0,97259.0,0.154227]
[1738704873158,0.00014123,97261.0,97260.0,0.0012336]
[1738704873272,0.00014123,97261.0,97239.0,0.15]
[1738704873273,0.00014123,97261.0,97240.0,0.32970369]
[1738704873476,0.154225,97260.0,97243.0,0.154251]
[1738704873687,0.00014123,97261.0,97260.0,0.002]
[1738704873889,0.00167928,97261.0,97260.0,0.002]
[1738704874093,0.10252629,97261.0,97253.0,0.005]
[1738704874315,0.154235,97254.0,97253.0,0.005]
[1738704875119,0.01104,97255.0,97252.0,0.154238]
[1738704875325,0.00014123,97261.0,97253.0,0.00123374]
[1738704875539,0.00014123,97261.0,97240.0,0.32970369]
[1738704875540,0.00014123,97261.0,97251.0,0.00123371]
[1738704875743,0.00014123,97261.0,97251.0,0.10238506]
[1738704875942,0.00014123,97261.0,97240.0,0.33270369]
[1738704876170,0.00014123,97261.0,97241.0,0.10361876]
[1738704876366,0.205634,97260.0,97252.0,0.002]
[1738704876568,0.154236,97254.0,97252.0,0.002]
[1738704876737,0.00153805,97253.0,97252.0,0.002]
[1738704876951,0.205625,97265.0,97227.0,0.0001066]
[1738704877158,0.205634,97260.0,97244.0,0.154249]
[1738704877359,0.00022387,97266.0,97240.0,0.009]
[1738704877623,0.20584687,97266.0,97241.0,0.00123385]
[1738704877823,0.154236,97254.0,97252.0,0.003]
[1738704877974,0.00153805,97253.0,97252.0,0.003]
[1738704878345,0.154255,97241.0,97240.0,0.003]
[1738704878472,0.154276,97228.0,97200.0,0.32970369]
[1738704878673,0.154276,97228.0,97171.0,0.01]
[1738704878674,0.25666106,97228.0,97192.0,0.02053022]
[1738704878885,0.40666106,97228.0,97227.0,6e-07]
[1738704879085,0.154324,97198.0,97172.0,0.02073369]
[1738704879292,0.165364,97198.0,97172.0,0.02073369]
[1738704879494,0.16526224,97198.0,97173.0,0.00123464]
[1738704879697,0.01104,97198.0,97197.0,0.00057785]
[1738704879895,0.154287,97222.0,97197.0,0.10296291]
[1738704880120,0.01,97255.0,97200.0,0.32970369]
[1738704880121,0.154293,97218.0,97200.0,0.32970369]
[1738704880318,0.01104,97225.0,97200.0,0.32970369]
[1738704880319,0.08246785,97216.0,97201.0,0.10238506]
[1738704880520,0.205716,97222.0,97201.0,0.10238506]
[1738704880731,0.01104,97225.0,97201.0,0.10238506]
[1738704880960,0.00153805,97224.0,97201.0,0.25670306]
[1738704881097,0.205717,97221.0,97202.0,0.0012343]
[1738704881301,0.01104,97225.0,97203.0,0.10238506]
[1738704881703,0.154297,97215.0,97205.0,0.154311]
[1738704881904,0.01104,97225.0,97203.0,0.10238506]
[1738704882109,0.10392311,97224.0,97200.0,0.33270369]
[1738704882306,0.154318,97202.0,97200.0,0.003]
[1738704882499,0.10238506,97224.0,97203.0,0.154315]
[1738704882703,0.205735,97213.0,97205.0,0.002]
[1738704882921,0.154311,97207.0,97205.0,0.002]
[1738704883123,0.205714,97222.0,97205.0,0.002]
[1738704883337,0.154297,97215.0,97203.0,0.154315]
[1738704883540,0.011,97220.0,97210.0,0.154304]
[1738704883792,0.011,97220.0,97211.0,0.00123432]
[1738704883937,0.011,97220.0,97205.0,0.004]
[1738704884137,0.154299,97214.0,97205.0,0.004]
[1738704884334,0.154307,97209.0,97203.0,0.003]
[1738704884552,0.154304,97211.0,97203.0,0.007]
[1738704884994,0.216712,97223.0,97203.0,0.007]
[1738704884995,0.011,97223.0,97203.0,0.004]
[1738704885178,0.011,97223.0,97203.0,0.006]
[1738704885179,0.154314,97205.0,97203.0,0.006]
[1738704885922,0.154314,97205.0,97203.0,0.004]
[1738704886138,0.154314,97205.0,97203.0,0.002]
[1738704886421,0.011,97223.0,97203.0,0.002]
[1738704886665,0.154311,97206.0,97205.0,0.004]
[1738704886864,0.205743,97209.0,97197.0,0.00057785]
[1738704886865,0.154324,97198.0,97197.0,0.00057785]
[1738704887086,0.08246785,97221.0,97197.0,0.00057785]
[1738704887295,0.01322798,97223.0,97200.0,0.32970369]
[1738704887495,0.01096,97226.0,97203.0,0.002]
[1738704887718,0.01096,97226.0,97204.0,0.00123433]
[1738704887872,0.154309,97208.0,97204.0,0.00123433]
[1738704888075,0.154311,97206.0,97205.0,0.001]
[1738704888442,0.15584905,97206.0,97205.0,0.001]
[1738704888651,0.25823411,97206.0,97205.0,0.001]
[1738704888848,0.25669606,97206.0,97205.0,0.001]
[1738704889058,0.154324,97198.0,97197.0,0.00057785]
[1738704889258,0.40670906,97198.0,97197.0,0.00057785]
[1738704890089,0.16,97197.0,97142.0,0.154412]
[1738704890291,0.36574297,97198.0,97140.0,0.00014129]
[1738704890292,0.154414,97141.0,97140.0,0.00014129]
[1738704890613,0.15,97178.0,97140.0,0.00014129]
[1738704890819,0.154373,97168.0,97142.0,0.205884]
[1738704891154,0.154378,97164.0,97152.0,0.154395]
[1738704891380,0.15436,97175.0,97143.0,0.10362009]
[1738704891573,0.154381,97163.0,97151.0,0.154398]
[1738704891695,0.08246785,97176.0,97143.0,0.10362009]
[1738704891900,0.154377,97165.0,97143.0,0.10362009]
[1738704892111,0.00153805,97164.0,97144.0,0.10238506]
[1738704892316,0.01346578,97178.0,97145.0,0.00123513]
[1738704892523,0.08246785,97177.0,97146.0,0.10238506]
[1738704892737,0.08692036,97193.0,97146.0,0.10238506]
[1738704892738,0.23682685,97176.0,97160.0,0.32970369]
[1738704892936,0.08246785,97176.0,97162.0,0.205841]
[1738704893136,0.09586883,97189.0,97164.0,0.205837]
[1738704893420,0.09586883,97189.0,97165.0,0.10361988]
[1738704893421,0.01104,97184.0,97165.0,0.10361988]
[1738704893566,0.01104,97184.0,97165.0,0.10238506]
[1738704894020,0.01104,97184.0,97140.0,0.32984498]
[1738704894021,0.10392311,97183.0,97140.0,0.32984498]
[1738704894215,0.10392311,97183.0,97146.0,0.10362007]
[1738704894454,0.10392311,97183.0,97142.0,0.154411]
[1738704894666,0.10392311,97183.0,97140.0,0.00014129]
[1738704894667,0.360148,97182.0,97148.0,0.154402]
[1738704894854,0.154377,97165.0,97149.0,0.00123502]
[1738704894987,0.01104,97184.0,97150.0,0.00123498]
[1738704895198,0.09686883,97189.0,97164.0,0.002]
[1738704895399,0.154374,97167.0,97164.0,0.002]
[1738704895601,0.01257805,97188.0,97141.0,0.00123492]
[1738704895801,0.10238506,97187.0,97148.0,0.002]
[1738704896014,0.154379,97164.0,97152.0,0.154396]
[1738704896230,0.154382,97162.0,97149.0,0.10238506]
[1738704896428,0.205846,97160.0,97149.0,0.10238506]
[1738704896641,0.15,97186.0,97149.0,0.10238506]
[1738704896871,0.154355,97178.0,97150.0,0.1544]
[1738704897194,0.00153805,97177.0,97152.0,0.002]
[1738704897332,0.154384,97160.0,97152.0,0.002]
[1738704897532,0.00153805,97174.0,97152.0,0.002]
[1738704897731,0.565999,97173.0,97152.0,0.002]
[1738704897933,0.154381,97162.0,97152.0,0.002]
[1738704898991,0.154378,97164.0,97152.0,0.002]
[1738704899200,0.205835,97165.0,97152.0,0.002]
[1738704899402,0.154395,97153.0,97152.0,0.006]
[1738704899656,0.205857,97155.0,97149.0,0.0001067]
[1738704899837,0.1544,97150.0,97149.0,0.0001067]
[1738704900046,0.205843,97161.0,97152.0,0.004]
[1738704900200,0.1155859,97168.0,97152.0,0.002]
[1738704900407,0.01320084,97168.0,97152.0,0.002]
[1738704900614,0.154394,97154.0,97152.0,0.002]
[1738704901018,0.00153805,97153.0,97152.0,0.002]
[1738704901333,0.00153805,97153.0,97152.0,0.004]
[1738704901538,0.31068712,97153.0,97100.0,0.21351169]
[1738704901740,0.31068712,97153.0,97099.0,0.0827068]
[1738704901741,0.154432,97130.0,97099.0,0.02018429]
[1738704901937,0.25681706,97130.0,97099.0,0.0001068]
[1738704902122,0.25681706,97130.0,97129.0,0.0002481]
[1738704902516,0.40681706,97130.0,97129.0,0.0002481]
[1738704902839,0.15447,97106.0,97099.0,0.0001068]
[1738704903038,0.26777506,97106.0,97105.0,0.0002481]
[1738704903390,0.41777506,97106.0,97105.0,0.0002481]
[1738704904140,0.154479,97100.0,97099.0,0.0001068]
[1738704904342,0.25840211,97100.0,97099.0,0.0001068]
[1738704904538,0.25686406,97100.0,97099.0,0.0001068]
[1738704905109,0.42986406,97100.0,97099.0,8e-07]
[1738704905389,0.42986406,97100.0,97054.0,0.0001069]
[1738704905390,0.15453,97068.0,97054.0,0.0001069]
[1738704905546,0.15453,97068.0,97067.0,0.00057869]
[1738704905547,0.25691506,97068.0,97067.0,0.00057869]
[1738704906919,0.25691506,97068.0,97067.0,0.00157869]
[1738704907075,0.27043161,97068.0,97067.0,0.00257869]
[1738704907274,0.42043161,97068.0,97067.0,0.00257869]
[1738704907480,0.43143161,97068.0,97067.0,0.00257869]
[1738704907963,0.43143161,97068.0,97067.0,0.00157869]
[1738704908165,0.43143161,97068.0,97067.0,0.00057869]
[1738704908414,0.43343161,97068.0,97067.0,0.00057869]
[1738704908661,0.4588962,97068.0,97067.0,0.00057869]
[1738704909069,0.43343161,97068.0,97067.0,0.00057869]
[1738704909226,0.50303161,97068.0,97067.0,0.00057869]
[1738704909629,0.01,97062.0,97054.0,0.0001069]
[1738704909829,0.327551,97055.0,97054.0,0.0002484]
[1738704910030,0.42993606,97055.0,97054.0,0.0002484]
[1738704910243,0.51514167,97055.0,97054.0,0.0002484]
[1738704910435,0.42993606,97055.0,97054.0,0.0002484]
[1738704910634,0.154612,97017.0,97001.0,0.00380619]